Cogmind - Beta 12 @@@ ROGUE MODE // 2023.03.26 @ 21:55:48 Player: guru-jr Result: Destroyed by S-43 Plague with Heavy Machine Gun Performance ------------- Evolutions (9) 4500 Regions Visited (23) 4600 Robots Destroyed (152) 760 Value Destroyed (6748) 6748 Prototype IDs (20) 400 Alien Tech Used (0) 0 Bonus (3364) 3364 TOTAL SCORE: 20372 Bonus ------- Follower Combat Kills 77 Aligned with FarCom 300 Met Warlord at Base 500 MAIN.C Attacked Warlord 500 Met Warlord at Research 2000 Friendly Fire -13 Cogmind --------- Core Integrity 0/1600 Matter 290/300 Energy 88/100 System Corruption 6% Temperature Cool (0) Movement Core (50) Location -1/Access Parts ------- > --- POWER (2) -------- (None) > --- PROPULSION (4) --- (None) > --- UTILITY (16) ----- (None) > --- WEAPON (3) ------- Powered Hammer > --- INVENTORY (5) ---- Wheel Quantum Rifle Long-range Phase Cannon Enhanced Nova Cannon Peak State ------------ > --- POWER ------------ Micro Antimatter Reactor Micro Antimatter Reactor > --- PROPULSION ------- Centrium Wheel Centrium Wheel Centrium Wheel Centrium Wheel > --- UTILITY ---------- Advanced Power Amplifier Advanced Cooling System Advanced Cooling System High-capacity Storage Unit Advanced Targeting Computer Advanced Target Analyzer Core Analyzer Makeshift Transmission Jammer Improved Weapon Shielding Improved Heavy Armor Plating Improved Focal Shield Hacking Suite Makeshift Hacking Suite Makeshift Hacking Suite Improved Hacking Suite > --- WEAPON ----------- Heavy Phase Cannon Enhanced Nova Cannon Enhanced Nova Cannon > --- INVENTORY -------- Reinforced Antimatter Reactor Micro Antimatter Reactor Micro Antimatter Reactor Improved Cooling System Advanced Cooling System Energy Well Layered Light Armor Plating Phase Gun Quantum Rifle Quantum Rifle Phase Cannon Long-range Phase Cannon Enhanced Nova Cannon Enhanced Nova Cannon Powered Hammer [Rating: 152] Favorites ----------- Power Heavy Ion Engine Engine Heavy Ion Engine Power Core Light Nuclear Core Reactor Micro Antimatter Reactor Propulsion Centrium Wheel Leg Makeshift Leg Wheel Centrium Wheel Utility Advanced Targeting Computer Device Makeshift Transmission Jammer Storage High-capacity Storage Unit Processor Advanced Targeting Computer Hackware Hacking Suite Protection Hardened Medium Armor Plating Weapon Beam Cannon Energy Gun Heavy Laser Energy Cannon Beam Cannon Ballistic Gun Assault Rifle Ballistic Cannon Enhanced Gauss Cannon Launcher Grenade Launcher Special Weapon Enhanced Flamer Impact Weapon Powered Hammer Slashing Weapon Longsword +1 Build | -11 -10 -10 -10 -9 -8 -7 -6 -6 -6 -6 -6 -5 -5 -5 -5 -4 -4 -4 -4 -3 -3 -2 -1 ------- Run | Jun Mat Min Exi Min Mat Fac Fac Was Fac Low Low Fac Upp Upp War Pro Fac Upp Upp Res Arm Res Acc Slots Evolved 18 | . . . . . 4 2 2 . . . . 2 . . . . 2 . . 2 . 2 2 Power 1 | . . . . . . . 1 . . . . . . . . . . . . . . . . Propulsion 2 | . . . . . . . . . . . . . . . . . 2 . . . . . . Utility 14 | . . . . . 3 2 1 . . . . 2 . . . . . . . 2 . 2 2 Weapon 1 | . . . . . 1 . . . . . . . . . . . . . . . . . . Parts Attached 254 | 7 2 1 5 2 26 18 6 3 8 5 4 41 6 8 3 2 37 17 . 3 25 14 11 Power 28 | 1 . 1 . . 1 1 1 1 2 . . 7 1 1 . . 3 2 . . 5 1 . Engine 10 | 1 . . . . 1 1 1 1 1 . . 2 1 1 . . . . . . . . . Core 10 | . . 1 . . . . . . 1 . . 4 . . . . 2 2 . . . . . Reactor 8 | . . . . . . . . . . . . 1 . . . . 1 . . . 5 1 . Propulsion 27 | 2 . . . 1 2 1 . 1 . . 2 3 1 2 . . 4 1 . . 2 4 1 Treads . | . . . . . . . . . . . . . . . . . . . . . . . . Leg 1 | . . . . . . . . . . . . . . 1 . . . . . . . . . Wheel 26 | 2 . . . 1 2 1 . 1 . . 2 3 1 1 . . 4 1 . . 2 4 1 Hover . | . . . . . . . . . . . . . . . . . . . . . . . . Flight . | . . . . . . . . . . . . . . . . . . . . . . . . Utility 79 | 2 1 . 3 1 4 6 1 . 3 3 1 11 3 2 1 1 7 8 . 3 5 7 6 Device 41 | 1 . . 2 . 2 4 . . 2 3 1 7 2 1 . 1 2 3 . 1 3 3 3 Storage 3 | 1 1 . 1 . . . . . . . . . . . . . . . . . . . . Processor 8 | . . . . 1 1 1 . . . . . 1 . . . . 1 . . . 1 2 . Hackware 6 | . . . . . 1 1 . . . . . 1 . . . . . 1 . 1 . 1 . Protection 21 | . . . . . . . 1 . 1 . . 2 1 1 1 . 4 4 . 1 1 1 3 Artifact . | . . . . . . . . . . . . . . . . . . . . . . . . Weapon 120 | 2 1 . 2 . 19 10 4 1 3 2 1 20 1 3 2 1 23 6 . . 13 2 4 Energy Gun 32 | . . . . . 1 2 2 1 1 1 . 7 1 1 . 1 9 3 . . 1 1 . Energy Cannon 34 | . 1 . . . 5 5 1 . 1 . . . . 1 2 . 5 1 . . 9 1 2 Ballistic Gun 17 | 2 . . 1 . 5 1 . . 1 1 1 4 . . . . . 1 . . . . . Ballistic Cannon 2 | . . . . . . . . . . . . 1 . 1 . . . . . . . . . Launcher 3 | . . . . . 3 . . . . . . . . . . . . . . . . . . Special Weapon 4 | . . . . . 3 . . . . . . . . . . . 1 . . . . . . Impact Weapon 27 | . . . . . 2 2 1 . . . . 8 . . . . 8 1 . . 3 . 2 Slashing Weapon 1 | . . . 1 . . . . . . . . . . . . . . . . . . . . Piercing Weapon . | . . . . . . . . . . . . . . . . . . . . . . . . Special Melee Weapon . | . . . . . . . . . . . . . . . . . . . . . . . . Unidentified Prototypes 6 | . . . 2 . 1 . . 1 . . . . . . 1 . 1 . . . . . . Corrupted Parts 1 | . . . . . . . . . . . . 1 . . . . . . . . . . . System Corruption 2 | . . . . . . . . . . . . 2 . . . . . . . . . . . Parts Lost 60 | . . . . . 3 1 . 6 1 1 2 9 . 3 . 3 2 3 . . 4 . 22 Power 10 | . . . . . . . . 2 . . . 4 . 1 . 1 . . . . 1 . 1 Propulsion 10 | . . . . . 1 . . . . . 1 2 . 1 . 1 . . . . . . 4 Utility 24 | . . . . . . . . 2 1 . . 1 . . . . 1 2 . . 2 . 15 Weapon 16 | . . . . . 2 1 . 2 . 1 1 2 . 1 . 1 1 1 . . 1 . 2 Highest Loss Streak 21 | . . . . . 3 1 . 6 1 1 1 2 . 2 . 3 1 1 . . 3 . 21 To Critical Strikes 1 | . . . . . . . . . . . . . . . . . . . . . . . 1 Average Slot Usage (%) 96 | . 100 100 99 100 99 98 92 62 85 85 86 99 99 98 100 87 99 98 94 94 93 94 79 Engine 4 | . 14 10 . . 1 7 13 5 6 6 6 3 4 6 11 6 . . . . . . . Core 4 | . . 3 14 14 7 . . . 6 6 6 6 5 4 . . 7 10 10 9 3 . . Wheel 14 | . 28 28 28 28 17 13 6 6 6 6 9 10 10 8 5 . 20 21 21 19 19 16 12 Device 16 | . 14 14 14 . 18 15 13 8 12 12 13 17 22 22 22 22 15 20 21 20 18 17 16 Storage 6 | . 14 14 14 14 9 7 6 6 6 6 6 5 5 5 5 5 5 5 5 4 4 4 3 Processor 12 | . . . . 14 9 15 13 13 13 13 13 17 17 17 17 17 15 11 5 4 4 12 10 Hackware 9 | . . . . . 8 15 13 9 6 6 6 11 11 11 11 11 10 10 10 13 14 17 13 Protection 2 | . . . . . . . 5 2 6 6 6 4 . . . . 4 1 5 7 7 4 6 Energy Gun 5 | . . . . . . 6 5 3 6 7 13 8 11 5 11 8 9 5 5 4 2 . . Energy Cannon 8 | . 9 14 14 14 17 10 13 4 6 6 1 . . 5 5 5 4 9 10 9 10 13 9 Ballistic Gun 4 | . 18 14 13 14 4 3 . . 6 4 2 4 5 2 . . . . . . . . . Naked Turns 19 | . . . . . . . . . . . . . . . . . . . . . . . 19 Heaviest Build 145 | 15 31 31 51 51 59 69 82 82 89 89 89 93 83 87 89 89 107 107 103 108 145 125 123 Greatest Support 64 | 20 20 20 20 20 22 28 28 28 28 28 28 24 28 28 16 20 64 64 64 64 64 64 64 Greatest Overweight (x) 7 | 1 1 1 2 2 2 2 2 2 3 3 3 7 6 5 5 5 4 1 1 1 2 3 2 Average Overweight (x) 2 | . . 1 1 2 2 2 2 1 3 2 2 3 2 3 5 3 1 1 1 1 1 1 . Largest Inventory Capacity 20 | 8 15 15 20 20 20 20 20 20 20 20 20 20 20 20 20 20 20 20 20 20 20 20 20 Average Capacity 19 | 7 12 15 18 20 20 20 20 20 20 20 20 20 20 20 20 20 20 20 20 20 20 20 17 Most Carried 20 | 5 14 15 18 20 20 20 20 20 19 20 20 20 20 20 20 20 20 20 19 18 20 20 18 Average Carried 18 | 2 9 13 15 19 18 19 19 20 13 17 19 19 19 19 19 19 19 19 19 17 18 19 13 Final Capacity 20 | 8 15 15 20 20 20 20 20 20 20 20 20 20 20 20 20 20 20 20 20 20 20 20 5 Final Carried 20 | 4 13 15 17 20 20 20 20 20 15 20 19 20 20 19 20 19 20 19 19 18 16 19 4 Class Distribution -------------------- 42% | Hacker-Gunner 17% | Mutant 12% | Derelict-Gunner 9% | Skirmisher 6% | Gunner 5% | Hacker-Mutant Dominant Class ---------------- Mutant | -10/Materials Mutant | -10/Mines Mutant | -10/Exiles Mutant | -9/Mines Skirmisher | -8/Materials Hacker-Gunner | -7/Factory Hacker-Gunner | -6/Factory Mutant | -6/Waste Gunner | -6/Factory Gunner | -6/Lower Caves Gunner | -6/Lower Caves Hacker-Gunner | -5/Factory Hacker-Gunner | -5/Upper Caves Hacker-Gunner | -5/Upper Caves Derelict-Gunner | -5/Warlord Derelict-Gunner | -4/Proximity Caves Hacker-Gunner | -4/Factory Hacker-Gunner | -4/Upper Caves Derelict-Gunner | -4/Upper Caves Hacker-Gunner | -3/Research Hacker-Gunner | -3/Armory Hacker-Gunner | -2/Research Hacker-Gunner | -1/Access Resources | -11 -10 -10 -10 -9 -8 -7 -6 -6 -6 -6 -6 -5 -5 -5 -5 -4 -4 -4 -4 -3 -3 -2 -1 ----------- Run | Jun Mat Min Exi Min Mat Fac Fac Was Fac Low Low Fac Upp Upp War Pro Fac Upp Upp Res Arm Res Acc Matter Collected 3875 | 302 192 . 60 140 201 375 . . 162 209 111 677 202 187 41 . 217 253 . . 360 140 46 Remotely . | . . . . . . . . . . . . . . . . . . . . . . . . Salvage Created 6899 | 155 286 . . 106 270 405 62 . 162 228 273 1598 139 256 . 150 752 210 109 103 685 62 888 Parts 323 | 11 21 . . 8 12 21 . . 7 10 12 81 7 10 . 1 32 6 9 2 27 5 41 Haulers Intercepted . | . . . . . . . . . . . . . . . . . . . . . . . . Recyclers Shooed 2 | . . . . . . . . . . . . 2 . . . . . . . . . . . Parts Field Recycled . | . . . . . . . . . . . . . . . . . . . . . . . . Retrieved Matter . | . . . . . . . . . . . . . . . . . . . . . . . . Parts Self-Destructed 42 | . . . . . . . . . . 6 9 . 5 10 . . . 3 9 . . . . Prevented . | . . . . . . . . . . . . . . . . . . . . . . . . Kills | -11 -10 -10 -10 -9 -8 -7 -6 -6 -6 -6 -6 -5 -5 -5 -5 -4 -4 -4 -4 -3 -3 -2 -1 ------- Run | Jun Mat Min Exi Min Mat Fac Fac Was Fac Low Low Fac Upp Upp War Pro Fac Upp Upp Res Arm Res Acc Combat Hostiles Destroyed 119 | . 5 . . 4 13 7 1 . 3 5 9 23 4 7 . . 11 4 2 1 12 1 7 Guns 56 | . 4 . . 2 2 3 . . 3 4 8 20 4 . . . 5 1 . . . . . Cannons 47 | . 1 . . 2 7 4 . . . . . 2 . 6 . . 4 2 2 . 11 1 5 AOE 4 | . . . . . 3 . . . . . . 1 . . . . . . . . . . . Classes Destroyed 16 | 2 3 . . 1 . 4 . . 1 1 . 1 . . . . . 1 . . 2 . . Worker 7 | . 1 . . . 1 . . . 1 . . 2 . . . . 1 . . . . . 1 Builder 3 | . . . . . . . . . . . . 1 . . . . . . . . . . 2 Tunneler 5 | 3 . . . . . 1 . . . . . 1 . . . . . . . . . . . Recycler 4 | 1 . . . . . . . . . . . 1 . . . . . . . . . . 2 Operator 4 | . . . . . . 1 . . . . . 1 . . . . 1 . . . . 1 . Watcher 10 | . 2 . . . . 1 . . 1 . . 3 . . . . 1 . . . . . 2 Swarmer 30 | . . . . 2 8 . . . 2 . 7 . 4 5 . . . 2 . . . . . Grunt 33 | . 5 . . 2 5 3 . . . 3 2 10 . 1 . . 2 . . . . . . Brawler 2 | . . . . . . . . . 1 . . 1 . . . . . . . . . . . Sentry 10 | . . . . . . 1 1 . . . . 2 . 1 . . 1 1 . 1 2 . . Specialist 5 | . . . . . . . . . . . . . . . . . . . . . 5 . . Hunter 10 | . . . . . . 1 . . . . . . . . . . 2 . . . 2 . 5 Programmer 24 | . . . . . . 2 . . . . . 10 . . . . 6 . 2 . 1 1 2 Heavy 2 | . . . . . . . . . . . . . . . . . . . . . 2 . . Decomposer 4 | . . . . . . . . . . . . . 3 . . 1 . . . . . . . Thief 2 | . . . . . . . . . . 2 . . . . . . . . . . . . . Mutant 1 | . . . . . . . . . . . . . . . . . . 1 . . . . . Best Kill Streak 10 | 4 2 . . 2 8 3 1 . 3 3 4 9 4 4 . . 2 3 2 1 5 1 10 Combat Bots Only 7 | . 2 . . 2 7 2 1 . 3 3 4 6 4 4 . . 2 3 2 1 5 1 3 Max Kills in Single Turn 3 | 1 2 . . 2 3 2 1 . 1 1 1 2 1 1 . 1 1 1 2 1 1 1 3 Gunslinging . | . . . . . . . . . . . . . . . . . . . . . . . . Exploded 3 | . . . . . 3 . . . . . . 1 . . . . . . . . . . . Melee . | . . . . . . . . . . . . . . . . . . . . . . . . Uniques/NPCs Destroyed . | . . . . . . . . . . . . . . . . . . . . . . . . Combat | -11 -10 -10 -10 -9 -8 -7 -6 -6 -6 -6 -6 -5 -5 -5 -5 -4 -4 -4 -4 -3 -3 -2 -1 -------- Run | Jun Mat Min Exi Min Mat Fac Fac Was Fac Low Low Fac Upp Upp War Pro Fac Upp Upp Res Arm Res Acc Damage Taken 13396 | . 112 . . 162 589 447 88 239 457 402 642 1909 79 330 . 236 981 567 101 60 1920 483 3592 Core 2998 | . 11 . . 71 91 190 21 28 . 23 44 293 . 37 . 56 116 61 . . 337 . 1619 Absorbed by Shields . | . . . . . . . . . . . . . . . . . . . . . . . . Redirected to Shielding 194 | . . . . . . . . . . . . . . . . . . . . . 111 . 83 Regen/Repaired (Parts) 780 | . . . . . . . . . . . . 763 . . 17 . . . . . . . . Core Remaining (%) 80 | 100 . . . 67 83 72 . . . . 86 . . . . 61 . . 84 . 74 100 . Volleys Fired 343 | 7 33 . . 10 26 20 3 . 10 12 21 67 7 9 . 4 34 9 3 3 36 5 24 Largest 3 | 2 2 . . 2 3 3 3 . 3 3 3 3 3 3 . 3 3 3 3 3 3 3 3 Hottest 330 | 40 80 . . 80 200 208 208 . 172 172 224 191 183 228 . 246 240 271 271 271 310 295 330 Shots Fired 932 | 14 66 . . 20 78 58 9 . 31 34 45 184 21 23 . 9 101 28 9 9 106 15 72 Gun 510 | 14 54 . . 10 22 32 3 . 21 22 44 165 21 8 . 5 68 12 3 3 3 . . Cannon 408 | . 12 . . 10 42 26 6 . 10 12 1 19 . 15 . 4 33 16 6 6 103 15 72 Launcher 4 | . . . . . 4 . . . . . . . . . . . . . . . . . . Special 10 | . . . . . 10 . . . . . . . . . . . . . . . . . . Kinetic 234 | 14 54 . . 10 22 13 . . 11 10 4 78 7 10 . . . 1 . . . . . Thermal 640 | . 12 . . 10 52 45 9 . 20 24 41 94 14 13 . 9 94 27 9 9 71 15 72 Explosive 4 | . . . . . 4 . . . . . . . . . . . . . . . . . . Electromagnetic 12 | . . . . . . . . . . . . 12 . . . . . . . . . . . Entropic 42 | . . . . . . . . . . . . . . . . . 7 . . . 35 . . Robot Hit Streak 43 | 7 8 . . 4 22 23 20 . 21 14 21 43 4 8 . 10 22 12 3 7 13 3 7 Robot Miss Streak 8 | 1 6 . . 3 2 1 . . 2 1 4 3 1 2 . 1 3 1 1 1 8 2 4 Penetration Max 1 | . . . . . . . . . . . . 1 . . . . . . . . . . . Secondary Targets 2 | . . . . . . . . . . . 1 1 . . . . . . . . . . . Max Gunslinging Chain 1 | . . . . . . . . . . . 1 1 . . . . . . . . . . . Shots Hit Robots 648 | 9 40 . . 11 46 48 9 . 23 25 35 148 8 14 . 6 80 19 5 7 65 9 41 Core Hits 283 | 4 13 . . 7 17 19 2 . 7 11 17 83 7 8 . 3 29 7 2 2 24 2 19 Critical Kills 13 | 2 . . . 1 1 . . . 1 1 . 3 . 1 . . 1 . . . 1 . 1 Critical Parts Destroyed 2 | . 1 . . . . . . . 1 . . . . . . . . . . . . . . Critical Strikes 38 | 2 1 . . 1 4 2 . . 2 1 . 9 . 1 . . 6 . . . 8 . 1 Burn 12 | . . . . . 3 2 . . . . . 4 . . . . 3 . . . . . . Meltdown 6 | . . . . . 1 . . . . 1 . . . 1 . . 1 . . . 1 . 1 Destroy 9 | 2 1 . . 1 . . . . 2 . . 3 . . . . . . . . . . . Blast 2 | . . . . . . . . . . . . 2 . . . . . . . . . . . Sunder 9 | . . . . . . . . . . . . . . . . . 2 . . . 7 . . Melee Attacks 66 | . . . . . 3 4 9 . . . . 22 . . . . 10 1 . . 16 . 1 Impact 66 | . . . . . 3 4 9 . . . . 22 . . . . 10 1 . . 16 . 1 Slashing . | . . . . . . . . . . . . . . . . . . . . . . . . Piercing . | . . . . . . . . . . . . . . . . . . . . . . . . Sneak Attacks . | . . . . . . . . . . . . . . . . . . . . . . . . Combat Hostiles . | . . . . . . . . . . . . . . . . . . . . . . . . Follow-up Attacks . | . . . . . . . . . . . . . . . . . . . . . . . . Damage Inflicted 18487 | 110 584 . . 205 1150 938 205 . 494 569 706 3841 183 398 . 164 2400 533 228 245 3218 350 1966 Guns 7897 | 110 444 . . 83 188 479 52 . 319 369 681 3161 183 124 . 95 1246 174 28 53 108 . . Cannons 9901 | . 140 . . 122 456 459 153 . 175 200 25 523 . 274 . 69 1137 359 200 192 3110 350 1957 Explosions 570 | . . . . . 413 . . . . . . 157 . . . . . . . . . . . Melee . | . . . . . . . . . . . . . . . . . . . . . . . . Ramming 45 | . . . . . 19 . . . . . . . . . . . 17 . . . . . 9 Kinetic 3142 | 110 444 . . 83 188 164 . . 170 159 43 1638 . 143 . . . . . . . . . Thermal 12807 | . 140 . . 122 530 774 205 . 324 410 663 2020 183 255 . 164 2024 533 228 245 1680 350 1957 Explosive 413 | . . . . . 413 . . . . . . . . . . . . . . . . . . Electromagnetic 183 | . . . . . . . . . . . . 183 . . . . . . . . . . . Impact . | . . . . . . . . . . . . . . . . . . . . . . . . Slashing . | . . . . . . . . . . . . . . . . . . . . . . . . Piercing . | . . . . . . . . . . . . . . . . . . . . . . . . Entropic 1897 | . . . . . . . . . . . . . . . . . 359 . . . 1538 . . Highest Corruption 17 | . . . . . . 1 . 14 17 17 17 9 9 9 9 . 1 1 1 . 2 . 6 Average Corruption 6 | . . . . . . 1 . 10 15 17 17 4 9 9 9 . 1 1 1 . 1 . 2 Corruption Purged . | . . . . . . . . . . . . . . . . . . . . . . . . Corruption Blocked . | . . . . . . . . . . . . . . . . . . . . . . . . Effects 151 | . . . . . . 5 . 7 13 33 14 23 16 20 2 . 7 4 2 . 3 . 2 Message Errors 42 | . . . . . . 1 . 3 6 9 4 3 3 6 1 . 4 1 . . 1 . . Matter Fused 43 | . . . . . . 1 . 1 2 10 4 7 7 5 . . 1 . 2 . 2 . 1 Heat Flow Errors 9 | . . . . . . . . . 1 2 . 2 . 3 . . . . . . . . 1 Energy Discharges 17 | . . . . . . 1 . 1 2 4 1 2 1 3 1 . . 1 . . . . . Parts Rejected 2 | . . . . . . . . 2 . . . . . . . . . . . . . . . Parts Fused 3 | . . . . . . . . . . . . 2 . . . . 1 . . . . . . Data Loss (minor) 22 | . . . . . . 2 . . 1 4 2 6 4 2 . . . 1 . . . . . Data Loss (major) 4 | . . . . . . . . . . 4 . . . . . . . . . . . . . Misfires 4 | . . . . . . . . . 1 . . . . 1 . . 1 1 . . . . . Alerts 1 | . . . . . . . . . . . . . 1 . . . . . . . . . . Weapon Failures 4 | . . . . . . . . . . . 3 1 . . . . . . . . . . . Overload Shots 1 | . . . . . . . . . . . . . . . . . 1 . . . . . . Overflow Damage 368 | . . . . . 8 . . . . . . 84 . . . 4 47 . 27 . 70 20 108 Projectiles 307 | . . . . . . . . . . . . 31 . . . 4 47 . 27 . 70 20 108 Explosions 61 | . . . . . 8 . . . . . . 53 . . . . . . . . . . . Melee . | . . . . . . . . . . . . . . . . . . . . . . . . Knockbacks 3 | . . . . . . . . . . . . 3 . . . . . . . . . . . Impact . | . . . . . . . . . . . . . . . . . . . . . . . . Kinetic 3 | . . . . . . . . . . . . 3 . . . . . . . . . . . Secondary . | . . . . . . . . . . . . . . . . . . . . . . . . Self-Inflicted Damage 188 | . . . . . 89 . . . . . . 87 . . . . 8 . . . . . 4 Shots 3 | . . . . . 2 . . . . . . 1 . . . . . . . . . . . Rammed 4 | . . . . . 1 . . . . . . . . . . . 1 . . . . . 2 Targets Rammed 4 | . . . . . 1 . . . . . . . . . . . 1 . . . . . 2 Kicked . | . . . . . . . . . . . . . . . . . . . . . . . . Crushed . | . . . . . . . . . . . . . . . . . . . . . . . . Highest Temperature 451 | . 66 . . 228 36 99 84 . 236 408 354 189 . 176 . 33 135 403 132 216 204 48 451 Average Temperature 80 | . 27 . . 87 12 34 44 . 88 143 127 29 . 39 . 22 42 169 65 110 100 24 114 Received Heat Transfer 1357 | . 60 . . 90 207 69 18 . . 115 126 360 . 36 . 9 78 36 . 9 45 99 . Effects 6 | . . . . . . . . . . 2 1 . . . . . . 2 . . . . 1 Shutdowns 3 | . . . . . . . . . . 1 1 . . . . . . 1 . . . . . Energy Bleed 1 | . . . . . . . . . . . . . . . . . . 1 . . . . . Damage (minor) 2 | . . . . . . . . . . 1 . . . . . . . . . . . . 1 Siege Activations . | . . . . . . . . . . . . . . . . . . . . . . . . Robots Corrupted . | . . . . . . . . . . . . . . . . . . . . . . . . Combat Hostiles . | . . . . . . . . . . . . . . . . . . . . . . . . Parts Fried . | . . . . . . . . . . . . . . . . . . . . . . . . Impact Corruptions . | . . . . . . . . . . . . . . . . . . . . . . . . Robots Melted 13 | . . . . . 1 . 1 . . 1 1 . . 1 . . 3 1 . 1 1 . 2 Combat Hostiles 12 | . . . . . 1 . 1 . . 1 1 . . 1 . . 2 1 . 1 1 . 2 Parts Melted 63 | . . . . 1 3 6 4 . 1 1 4 9 . 2 . 1 13 3 2 2 6 1 4 Heat Transferred 20213 | . 296 . . 259 2002 1693 372 . 555 703 1366 3845 296 296 . 222 3361 729 222 259 1591 333 1813 Parts Sabotaged 6 | . . . . . . . . . . . . . . . . . . . . . 3 3 . Parts Stolen 2 | . . . . . . . . . . 2 . . . . . . . . . . . . . Parts Stripped . | . . . . . . . . . . . . . . . . . . . . . . . . Power Chain Reactions . | . . . . . . . . . . . . . . . . . . . . . . . . Missiles Intercepted . | . . . . . . . . . . . . . . . . . . . . . . . . Alert | -11 -10 -10 -10 -9 -8 -7 -6 -6 -6 -6 -6 -5 -5 -5 -5 -4 -4 -4 -4 -3 -3 -2 -1 ------- Run | Jun Mat Min Exi Min Mat Fac Fac Was Fac Low Low Fac Upp Upp War Pro Fac Upp Upp Res Arm Res Acc Peak Influence 296 | 20 209 21 . 51 167 120 69 36 79 . . 274 . . . . 209 . . 110 296 211 219 Initial 155 | . 13 21 . . . . 15 21 . . . 154 . . . . . . . 40 57 155 . Average 64 | 8 104 21 . 32 20 20 26 12 30 . . 118 . . . . 86 . . 53 87 103 63 Maximum Alert Level 1 | . 1 . . . . . . . . . . 1 . . . . 1 . . . 1 1 1 Low Security (%) 89 | 100 90 100 . 100 100 100 100 100 100 . . 69 . . . . 88 . . 100 94 71 96 Level 1 10 | . 10 . . . . . . . . . . 30 . . . . 11 . . . 5 28 3 Level 2 . | . . . . . . . . . . . . . . . . . . . . . . . . Level 3 . | . . . . . . . . . . . . . . . . . . . . . . . . Level 4 . | . . . . . . . . . . . . . . . . . . . . . . . . Level 5 . | . . . . . . . . . . . . . . . . . . . . . . . . High Security . | . . . . . . . . . . . . . . . . . . . . . . . . Max Security . | . . . . . . . . . . . . . . . . . . . . . . . . Squads Dispatched 26 | . 3 . . . 1 3 1 . . . . 9 . . . . 4 . . . 3 1 1 Investigation 5 | . . . . . . . 1 . . . . 2 . . . . 1 . . . . . 1 Extermination 11 | . . . . . . 2 . . . . . 6 . . . . 2 . . . 1 . . Reinforcement 10 | . 3 . . . 1 1 . . . . . 1 . . . . 1 . . . 2 1 . Assault . | . . . . . . . . . . . . . . . . . . . . . . . . Garrison . | . . . . . . . . . . . . . . . . . . . . . . . . Intercept . | . . . . . . . . . . . . . . . . . . . . . . . . Searches Triggered . | . . . . . . . . . . . . . . . . . . . . . . . . Construction Impeded 1 | . . . . . 1 . . . . . . . . . . . . . . . . . . Haulers Reinforced . | . . . . . . . . . . . . . . . . . . . . . . . . Active Scanning Responses . | . . . . . . . . . . . . . . . . . . . . . . . . Cargo Convoy Interrupts . | . . . . . . . . . . . . . . . . . . . . . . . . Stealth | -11 -10 -10 -10 -9 -8 -7 -6 -6 -6 -6 -6 -5 -5 -5 -5 -4 -4 -4 -4 -3 -3 -2 -1 --------- Run | Jun Mat Min Exi Min Mat Fac Fac Was Fac Low Low Fac Upp Upp War Pro Fac Upp Upp Res Arm Res Acc Distress Signals 13 | . 1 . . . . . . . . . . . . . 1 . 1 . . . 2 6 2 Communications Jammed 70 | . . . . . . . . . . . . 11 . . . . 1 . . . 29 5 24 Distress Signals 66 | . . . . . . . . . . . . 8 . . . . 1 . . . 28 5 24 Times Spotted 209 | . 14 . . 8 16 9 1 5 4 6 12 29 4 7 11 1 16 5 1 1 19 14 26 Peak Tracking Total 14 | . 3 . . 3 4 3 2 5 3 3 4 4 1 4 8 1 3 1 2 1 4 5 14 Tactical Retreats 10 | . 1 . . . . . 1 . . . 2 2 . . . 1 1 1 . . . . 1 Traps | -11 -10 -10 -10 -9 -8 -7 -6 -6 -6 -6 -6 -5 -5 -5 -5 -4 -4 -4 -4 -3 -3 -2 -1 ------- Run | Jun Mat Min Exi Min Mat Fac Fac Was Fac Low Low Fac Upp Upp War Pro Fac Upp Upp Res Arm Res Acc Traps Triggered 10 | . . . . . . 1 2 . 3 . . . . . . . 2 . . . 1 . 1 Indirectly . | . . . . . . . . . . . . . . . . . . . . . . . . Trap Hack Attempts . | . . . . . . . . . . . . . . . . . . . . . . . . Triggered . | . . . . . . . . . . . . . . . . . . . . . . . . Disarmed . | . . . . . . . . . . . . . . . . . . . . . . . . Reprogrammed . | . . . . . . . . . . . . . . . . . . . . . . . . Reused . | . . . . . . . . . . . . . . . . . . . . . . . . Traps Extracted . | . . . . . . . . . . . . . . . . . . . . . . . . Installed . | . . . . . . . . . . . . . . . . . . . . . . . . Triggered 15 | . . . . . . . . . . . . . . . 12 2 . . 1 . . . . Machines | -11 -10 -10 -10 -9 -8 -7 -6 -6 -6 -6 -6 -5 -5 -5 -5 -4 -4 -4 -4 -3 -3 -2 -1 ---------- Run | Jun Mat Min Exi Min Mat Fac Fac Was Fac Low Low Fac Upp Upp War Pro Fac Upp Upp Res Arm Res Acc Machines Disabled 12 | . . . . . . . 1 . . . . 5 . . . . 3 1 . 1 1 . . Max in Single Turn 3 | . . . . . . . 1 . . . . 3 . . . . 1 1 . 1 1 . . Garrison Access 2 | . . . . . . . . . . . . 1 . . . . . . . . . 1 . Machines Repaired . | . . . . . . . . . . . . . . . . . . . . . . . . Machines Sabotaged . | . . . . . . . . . . . . . . . . . . . . . . . . Overloaded Fab Kills . | . . . . . . . . . . . . . . . . . . . . . . . . Hacking | -11 -10 -10 -10 -9 -8 -7 -6 -6 -6 -6 -6 -5 -5 -5 -5 -4 -4 -4 -4 -3 -3 -2 -1 --------- Run | Jun Mat Min Exi Min Mat Fac Fac Was Fac Low Low Fac Upp Upp War Pro Fac Upp Upp Res Arm Res Acc Machines Accessed 41 | . 4 1 1 . 5 5 2 . . . . 9 2 . 2 1 3 1 . 1 3 . 1 Terminals 27 | . 3 . . . 4 5 2 . . . . 5 . . . 1 2 . . 1 3 . 1 Fabricators 1 | . . . . . . . . . . . . 1 . . . . . . . . . . . Repair Stations 3 | . . . . . . . . . . . . 2 . . . . 1 . . . . . . Recycling Units 1 | . 1 . . . . . . . . . . . . . . . . . . . . . . Scanalyzers 1 | . . . . . 1 . . . . . . . . . . . . . . . . . . Garrison Access 1 | . . . . . . . . . . . . 1 . . . . . . . . . . . Total Hacks 105 | . 15 1 1 . 16 8 4 . . . . 26 6 . 6 1 8 1 . 2 8 . 2 Successful 71 | . 9 1 1 . 9 2 2 . . . . 21 6 . 6 1 4 1 . 1 7 . . Failed 34 | . 6 . . . 7 6 2 . . . . 5 . . . . 4 . . 1 1 . 2 Catastrophic 5 | . . . . . . 2 2 . . . . . . . . . . . . . . . 1 Database Lockouts . | . . . . . . . . . . . . . . . . . . . . . . . . Manual 40 | . 10 . 1 . 4 5 . . . . . 11 . . . . 5 . . 1 3 . . Terminals 72 | . 12 . . . 14 8 4 . . . . 15 . . . 1 6 . . 2 8 . 2 Fabricators 2 | . . . . . . . . . . . . 2 . . . . . . . . . . . Repair Stations 9 | . . . . . . . . . . . . 7 . . . . 2 . . . . . . Recycling Units 3 | . 3 . . . . . . . . . . . . . . . . . . . . . . Scanalyzers 2 | . . . . . 2 . . . . . . . . . . . . . . . . . . Garrison Access 2 | . . . . . . . . . . . . 2 . . . . . . . . . . . Terminal Hacks 43 | . 4 1 1 . 5 . 2 . . . . 8 6 . 6 1 1 1 . 1 6 . . Record 7 | . . . 1 . . . . . . . . . 5 . . 1 . . . . . . . Prototype ID Bank 7 | . . . . . 2 . . . . . . . . . 5 . . . . . . . . Open Door 4 | . . 1 . . . . . . . . . . 1 . 1 . . 1 . . . . . Level Access Points 1 | . . . . . . . . . . . . . . . . . . . . . 1 . . Branch Access Points 2 | . . . . . . . . . . . . 1 . . . . . . . 1 . . . Emergency Access Points 2 | . 1 . . . 1 . . . . . . . . . . . . . . . . . . Terminal Index 4 | . 1 . . . . . 1 . . . . 1 . . . . . . . . 1 . . Unreport Threat 3 | . . . . . 1 . . . . . . 1 . . . . . . . . 1 . . Locate Traps 4 | . 1 . . . . . . . . . . 2 . . . . . . . . 1 . . Recall Extermination 1 | . . . . . . . . . . . . 1 . . . . . . . . . . . Zone Layout 8 | . 1 . . . 1 . 1 . . . . 2 . . . . 1 . . . 2 . . Fabricator Hacks 2 | . . . . . . . . . . . . 2 . . . . . . . . . . . Load Schematic 1 | . . . . . . . . . . . . 1 . . . . . . . . . . . Build 1 | . . . . . . . . . . . . 1 . . . . . . . . . . . Repair Station Hacks 8 | . . . . . . . . . . . . 7 . . . . 1 . . . . . . Scan Component 5 | . . . . . . . . . . . . 4 . . . . 1 . . . . . . Repair 3 | . . . . . . . . . . . . 3 . . . . . . . . . . . Recycling Unit Hacks 2 | . 2 . . . . . . . . . . . . . . . . . . . . . . Report Inventory 1 | . 1 . . . . . . . . . . . . . . . . . . . . . . Retrieve Components 1 | . 1 . . . . . . . . . . . . . . . . . . . . . . Scanalyzer 2 | . . . . . 2 . . . . . . . . . . . . . . . . . . Insert Component 1 | . . . . . 1 . . . . . . . . . . . . . . . . . . Analyze 1 | . . . . . 1 . . . . . . . . . . . . . . . . . . Garrison Access Hacks 1 | . . . . . . . . . . . . 1 . . . . . . . . . . . Seal Access 1 | . . . . . . . . . . . . 1 . . . . . . . . . . . Unauthorized Hacks 13 | . 3 . . . 2 2 . . . . . 3 . . . . 2 . . . 1 . . Terminals 13 | . 3 . . . 2 2 . . . . . 3 . . . . 2 . . . 1 . . Botnet 13 | . 3 . . . 2 2 . . . . . 3 . . . . 2 . . . 1 . . Fabricators . | . . . . . . . . . . . . . . . . . . . . . . . . Repair Stations . | . . . . . . . . . . . . . . . . . . . . . . . . Recycling Units . | . . . . . . . . . . . . . . . . . . . . . . . . Scanalyzers . | . . . . . . . . . . . . . . . . . . . . . . . . Garrison Access . | . . . . . . . . . . . . . . . . . . . . . . . . Data Cores Recovered 1 | . . . . . . . . . . . . 1 . . . . . . . . . . . Used . | . . . . . . . . . . . . . . . . . . . . . . . . Hacking Detections 33 | . 3 . . . 5 5 2 . . . . 9 . . . 1 3 . . 1 3 . 1 Full Trace Events 4 | . . . . . . . . . . . . 2 . . . . 1 . . . . . 1 Feedback Events . | . . . . . . . . . . . . . . . . . . . . . . . . Feedback Blocked . | . . . . . . . . . . . . . . . . . . . . . . . . Robot Schematics Acquired . | . . . . . . . . . . . . . . . . . . . . . . . . Robots Built . | . . . . . . . . . . . . . . . . . . . . . . . . Authchips . | . . . . . . . . . . . . . . . . . . . . . . . . Time . | . . . . . . . . . . . . . . . . . . . . . . . . Total Robot Build Rating . | . . . . . . . . . . . . . . . . . . . . . . . . Part Schematics Acquired 1 | . . . . . 1 . . . . . . . . . . . . . . . . . . Parts Built 2 | . . . . . . . . . . . . 2 . . . . . . . . . . . Authchips . | . . . . . . . . . . . . . . . . . . . . . . . . Time 62 | . . . . . . . . . . . . 62 . . . . . . . . . . . Total Part Build Rating 4 | . . . . . . . . . . . . 4 . . . . . . . . . . . Parts Repaired 3 | . . . . . . . . . . . . 3 . . . . . . . . . . . Time 120 | . . . . . . . . . . . . 120 . . . . . . . . . . . Parts Recycled . | . . . . . . . . . . . . . . . . . . . . . . . . Recycled Matter . | . . . . . . . . . . . . . . . . . . . . . . . . Retrieved Matter . | . . . . . . . . . . . . . . . . . . . . . . . . Retrieved Components 1 | . 1 . . . . . . . . . . . . . . . . . . . . . . Parts Scanalyzed 1 | . . . . . 1 . . . . . . . . . . . . . . . . . . Part Schematics Acquired 1 | . . . . . 1 . . . . . . . . . . . . . . . . . . Parts Damaged . | . . . . . . . . . . . . . . . . . . . . . . . . Bothacking | -11 -10 -10 -10 -9 -8 -7 -6 -6 -6 -6 -6 -5 -5 -5 -5 -4 -4 -4 -4 -3 -3 -2 -1 ------------ Run | Jun Mat Min Exi Min Mat Fac Fac Was Fac Low Low Fac Upp Upp War Pro Fac Upp Upp Res Arm Res Acc Used RIF Installer . | . . . . . . . . . . . . . . . . . . . . . . . . Robots Hacked . | . . . . . . . . . . . . . . . . . . . . . . . . Non-combat . | . . . . . . . . . . . . . . . . . . . . . . . . Combat . | . . . . . . . . . . . . . . . . . . . . . . . . Robot Hacks Applied . | . . . . . . . . . . . . . . . . . . . . . . . . Relay Couplers Released 6 | . . . . . . . . . . . . . . . . . . . . . . 6 . Machine Destruction 2 | . . . . . . . . . . . . . . . . . . . . . . 2 . Programmers 4 | . . . . . . . . . . . . . . . . . . . . . . 4 . Fabnet Peak Effective % . | . . . . . . . . . . . . . . . . . . . . . . . . Robots Rewired . | . . . . . . . . . . . . . . . . . . . . . . . . Allies Hacked . | . . . . . . . . . . . . . . . . . . . . . . . . Hacks Repelled . | . . . . . . . . . . . . . . . . . . . . . . . . Allies | -11 -10 -10 -10 -9 -8 -7 -6 -6 -6 -6 -6 -5 -5 -5 -5 -4 -4 -4 -4 -3 -3 -2 -1 -------- Run | Jun Mat Min Exi Min Mat Fac Fac Was Fac Low Low Fac Upp Upp War Pro Fac Upp Upp Res Arm Res Acc Total Allies 7 | . . 3 . 1 . . . . . . . . 3 . . . . . . . . . . Largest Group 3 | . . 3 3 3 . . . . . . . . 3 . . . . . . . . . . Highest-Rated Group 93 | . . 40 40 40 . . . . . . . . 93 . . . . . . . . . . Highest-Rated Ally 31 | . . 16 16 31 . . . . . . . . 31 . . . . . . . . . . Total Orders 15 | . . 6 6 3 . . . . . . . . . . . . . . . . . . . STAY 6 | . . 3 3 . . . . . . . . . . . . . . . . . . . . FOLLOW 6 | . . 3 3 . . . . . . . . . . . . . . . . . . . . GUARD 3 | . . . . 3 . . . . . . . . . . . . . . . . . . . Ally Attacks 21 | . . . . 21 . . . . . . . . . . . . . . . . . . . Total Damage 236 | . . . . 236 . . . . . . . . . . . . . . . . . . . Kills 3 | . . . . 3 . . . . . . . . . . . . . . . . . . . Allies Corrupted . | . . . . . . . . . . . . . . . . . . . . . . . . Allies Melted . | . . . . . . . . . . . . . . . . . . . . . . . . Intel | -11 -10 -10 -10 -9 -8 -7 -6 -6 -6 -6 -6 -5 -5 -5 -5 -4 -4 -4 -4 -3 -3 -2 -1 ------- Run | Jun Mat Min Exi Min Mat Fac Fac Was Fac Low Low Fac Upp Upp War Pro Fac Upp Upp Res Arm Res Acc Robot Analysis Total . | . . . . . . . . . . . . . . . . . . . . . . . . Derelict Logs Recovered 10 | . . . . 2 . . . . . 2 1 . 1 . . 1 . 2 1 . . . . Drone Launches . | . . . . . . . . . . . . . . . . . . . . . . . . Drone Recoveries . | . . . . . . . . . . . . . . . . . . . . . . . . Exploration | -11 -10 -10 -10 -9 -8 -7 -6 -6 -6 -6 -6 -5 -5 -5 -5 -4 -4 -4 -4 -3 -3 -2 -1 ------------- Run | Jun Mat Min Exi Min Mat Fac Fac Was Fac Low Low Fac Upp Upp War Pro Fac Upp Upp Res Arm Res Acc Turns Passed 17626 | 86 660 305 642 1007 1769 1439 543 149 330 787 246 2372 387 668 942 977 1397 715 197 172 635 811 390 Spaces Moved 10378 | 59 382 298 591 675 705 777 325 120 181 505 122 1161 277 371 534 329 829 565 156 62 342 689 323 Core 142 | 17 . . . . . . . . . . . . . . . . . . . . . . 125 Treads . | . . . . . . . . . . . . . . . . . . . . . . . . Legs 232 | . . . . . . . . . . . . . . . . 221 11 . . . . . . Wheels 10004 | 42 382 298 591 675 705 777 325 120 181 505 122 1161 277 371 534 108 818 565 156 62 342 689 198 Hover . | . . . . . . . . . . . . . . . . . . . . . . . . Flight . | . . . . . . . . . . . . . . . . . . . . . . . . Fastest Speed 50 | 50 80 95 95 110 110 115 130 115 145 130 130 135 125 125 175 175 110 110 110 110 110 110 50 Average Speed 125 | 75 89 95 105 110 111 118 130 120 145 144 137 135 126 144 175 292 113 110 110 110 114 110 87 Slowest Speed 420 | 95 95 95 110 110 115 130 130 130 145 145 145 195 180 175 175 420 350 110 110 110 130 150 130 Overloaded Moves . | . . . . . . . . . . . . . . . . . . . . . . . . Propulsion Burnouts . | . . . . . . . . . . . . . . . . . . . . . . . . Robots Hopped . | . . . . . . . . . . . . . . . . . . . . . . . . Cave-ins Triggered 1 | . . . . . . . . . . . . 1 . . . . . . . . . . . Exploration Rate (%) 41 | 3 61 53 92 88 49 18 7 88 7 65 22 30 44 56 84 56 15 77 20 3 21 18 13 Regions Visited 23 Branch Regions 12 Pre-discovered Areas 4 | . . . 1 1 . . . . . . . . 1 . . . . 1 . . . . . Known Exits Taken 6 | . . . . . . . . . . . . 1 . . . 1 1 . . 1 1 1 . Unknown Exits Taken 15 | 1 1 1 1 1 1 1 . . 1 1 1 . 1 1 1 . . 1 1 . . . . Scrap Searched 9 | . . . . . . . . . . 3 . . 2 2 . . . 2 . . . . . Spaces Dug 58 | . . . . . 3 3 6 . . . . 21 . . . . 10 . . . 15 . . Terrain Destroyed 187 | . . . . . 35 3 6 . 1 . . 53 4 6 . 2 13 6 . . 45 3 10 Melee 57 | . . . . . 3 3 6 . . . . 21 . . . . 9 . . . 15 . . Projectile 69 | . . . . . 1 . . . 1 . . 2 4 6 . 2 4 6 . . 30 3 10 AOE 61 | . . . . . 31 . . . . . . 30 . . . . . . . . . . . Terrain Rammed . | . . . . . . . . . . . . . . . . . . . . . . . . Walls Destroyed . | . . . . . . . . . . . . . . . . . . . . . . . . Machines Disabled . | . . . . . . . . . . . . . . . . . . . . . . . . Actions | -11 -10 -10 -10 -9 -8 -7 -6 -6 -6 -6 -6 -5 -5 -5 -5 -4 -4 -4 -4 -3 -3 -2 -1 --------- Run | Jun Mat Min Exi Min Mat Fac Fac Was Fac Low Low Fac Upp Upp War Pro Fac Upp Upp Res Arm Res Acc Total 14067 | 86 635 320 608 923 1621 1250 424 123 226 533 154 1775 299 483 541 336 1183 633 174 158 474 729 379 Wait 2717 | 3 200 19 4 217 828 389 72 . 24 4 5 439 2 93 . 2 250 29 16 90 21 3 7 Move 10355 | 58 381 297 590 674 704 776 325 119 180 504 121 1159 276 370 533 328 828 564 155 61 341 688 323 Hop . | . . . . . . . . . . . . . . . . . . . . . . . . Pick Up 182 | 11 13 2 5 11 20 21 5 . 4 8 2 24 5 2 3 . 12 6 . 1 14 11 2 Fast Attach 34 | . 1 . . . . 1 . 3 . . . 7 . . . . 12 2 . . 4 4 . Attach 93 | 7 . . 1 1 11 4 2 . 8 3 3 15 3 4 . 1 5 4 . 2 7 2 10 Detach 7 | . . . . 1 . 1 . . . . . 2 . 1 . . . 1 . . . . 1 Swap 127 | . 1 1 4 1 15 13 4 . . 2 1 19 3 4 3 1 20 11 . 1 14 8 1 Drop 130 | . 6 1 4 8 13 21 4 1 . . 1 20 3 . 2 . 11 6 . . 13 8 8 Fire 343 | 7 33 . . 10 26 20 3 . 10 12 21 67 7 9 . 4 34 9 3 3 36 5 24 Melee 66 | . . . . . 3 4 9 . . . . 22 . . . . 10 1 . . 16 . 1 Ram 4 | . . . . . 1 . . . . . . . . . . . 1 . . . . . 2 Kick . | . . . . . . . . . . . . . . . . . . . . . . . . Crush . | . . . . . . . . . . . . . . . . . . . . . . . . Escape Stasis 9 | . . . . . . . . . . . . 1 . . . . . . . . 8 . . Rewire . | . . . . . . . . . . . . . . . . . . . . . . . . Trap . | . . . . . . . . . . . . . . . . . . . . . . . . Miscellaneous . | . . . . . . . . . . . . . . . . . . . . . . . . Route ------- -11/Junkyard -10/Materials (discovered 3 exits: [*Mat x2] / *Min) -10/Mines -10/Exiles (discovered 2 exits: [*Min x2]) -9/Mines -8/Materials (discovered 2 exits: *Fac / *Sto) -7/Factory (discovered 2 exits: *Fac / Low) -6/Factory -6/Waste -6/Factory -6/Lower Caves -6/Lower Caves -5/Factory (discovered 4 exits: *Fac x2 / *Upp x2) -5/Upper Caves -5/Upper Caves -5/Warlord -4/Proximity Caves -4/Factory -4/Upper Caves -4/Upper Caves -3/Research (discovered 3 exits: *Arm / Tes x2) -3/Armory (discovered 2 exits: *Res x2) -2/Research -1/Access History --------- Turn | Location | Event 13 | -11/Junkyard | Discovered new exit (range 15) 87 | -11/Junkyard | Entered Materials 310 | -10/Materials | Build established: Mutant 321 | -10/Materials | Discovered new exit (range 7) 527 | -10/Materials | Discovered new exit (range 16) 663 | -10/Materials | Discovered new exit (range 16) 747 | -10/Materials | Entered Mines 749 | -10/Mines | Assisted by bots powering up and referring to "LRC-V3" 974 | -10/Mines | Met a Derelict who couldn't figure out how to use a Trap Extractor 1024 | -10/Mines | Deemed a non-threat by the Exiles lab entrance 1024 | -10/Mines | Discovered new exit (range 5) 1035 | -10/Mines | Assembled infested the area 1052 | -10/Mines | Entered Exiles 1052 | -10/Exiles | Accompanied by 3 allies 1066 | -10/Exiles | Discovered new exit (range 15) 1105 | -10/Exiles | Met 8R-AWN 1121 | -10/Exiles | Met EX-HEX 1159 | -10/Exiles | Met EX-DEC 1164 | -10/Exiles | Learned location of Zion (-7) 1266 | -10/Exiles | Visited The Gauntlet 1440 | -10/Exiles | Discovered new exit (range 11) 1510 | -10/Exiles | Met EX-BIN 1536 | -10/Exiles | Aligned with FarCom system 1537 | -10/Exiles | Given EX-Vault access code 1564 | -10/Exiles | Opened EX-Vault 1568 | -10/Exiles | Found Prototype Device 1569 | -10/Exiles | Identified Trap Reconfigurator 1576 | -10/Exiles | Found Prototype Slashing Weapon 1577 | -10/Exiles | Identified Longsword +1 1604 | -10/Exiles | Warned to stay clear of 0b10 Research branches 1694 | -10/Exiles | Left Exiles lab with Trap Reconfigurator 1694 | -10/Exiles | Entered Mines 1694 | -9/Mines | Accompanied by 3 allies 1905 | -9/Mines | Escorted by a lone wolf Derelict 1925 | -9/Mines | Learned location of Storage (-8) 2617 | -9/Mines | Found a damaged Exp. Sensor Array with a note attached 2620 | -9/Mines | Found Prototype Device 2640 | -9/Mines | Discovered new exit (range 15) 2675 | -9/Mines | A weapon hastily lodged in a ceiling crevice suddenly fell to the ground 2701 | -9/Mines | Entered Materials 2701 | -8/Materials | Evolved 4 slots: Utility x3, Weapon x1 2702 | -8/Materials | Identified exit to Storage 3085 | -8/Materials | Build established: Skirmisher 4241 | -8/Materials | Lost 3 parts (1n2w) 4244 | -8/Materials | Destroyed 7 combat bots 4381 | -8/Materials | Discovered new exit (range 9) 4470 | -8/Materials | Entered Factory 4470 | -7/Factory | Evolved 2 slots: Utility x2 4471 | -7/Factory | Identified exit to Lower Caves 4760 | -7/Factory | Build established: Hacker-Gunner 5878 | -7/Factory | Discovered new exit (range 4) 5909 | -7/Factory | Entered another Factory area 5909 | -6/Factory | Evolved 2 slots: Power x1, Utility x1 6452 | -6/Factory | Sucked down chute 6452 | -6/Factory | Entered Waste 6462 | -6/Waste | Spotted C-40 Crusher 6467 | -6/Waste | EMP discharged 6495 | -6/Waste | Crushed by Compactor (1 part destroyed) 6497 | -6/Waste | Spotted C-40 Crusher 6499 | -6/Waste | Spotted C-40 Crusher 6510 | -6/Waste | Crushed by Compactor (1 part destroyed, 1 dropped) 6513 | -6/Waste | Crushed by Compactor (1 part destroyed) 6521 | -6/Waste | Spotted C-40 Crusher 6526 | -6/Waste | Crushed by Compactor (1 part destroyed, 1 dropped) 6526 | -6/Waste | Spotted C-40 Crusher 6557 | -6/Waste | Lost 6 parts (2p2u2w) 6567 | -6/Waste | EMP discharged 6567 | -6/Waste | System corruption reached 10% 6581 | -6/Waste | Discovered new exit (range 11) 6601 | -6/Waste | Entered Factory 6898 | -6/Factory | Build established: Gunner 6921 | -6/Factory | Discovered new exit (range 7) 6931 | -6/Factory | Entered Lower Caves 7068 | -6/Lower Caves | Learned location of 1 exit from Factory 7376 | -6/Lower Caves | Learned Factory trap positions 7676 | -6/Lower Caves | Discovered new exit (range 11) 7718 | -6/Lower Caves | Entered another Lower Caves area 7870 | -6/Lower Caves | Learned 8 Factory zone layouts 7947 | -6/Lower Caves | Discovered new exit (range 8) 7964 | -6/Lower Caves | Entered Factory 7964 | -5/Factory | Evolved 2 slots: Utility x2 7965 | -5/Factory | Identified exit to Factory 7967 | -5/Factory | Loaded intel: 68 trap records 8258 | -5/Factory | Build established: Hacker-Gunner 8531 | -5/Factory | Identified exit to Upper Caves 8835 | -5/Factory | Fabricated Arm. Wheel (x2) 9136 | -5/Factory | Build established: Hacker-Mutant 9632 | -5/Factory | Repaired Imp. Heavy Armor Plating 9667 | -5/Factory | Repaired Arm. Wheel 9750 | -5/Factory | Build established: Hacker-Gunner 9924 | -5/Factory | Repaired Hrd. Medium Armor Plating 10303 | -5/Factory | Crushed by falling debris 10331 | -5/Factory | Discovered exit to Factory (range 12) 10336 | -5/Factory | Entered Upper Caves 10574 | -5/Upper Caves | Learned Factory garrison access intel 10591 | -5/Upper Caves | A Commander dispatched an escort 10592 | -5/Upper Caves | Learned Research stockpile data 10592 | -5/Upper Caves | Learned Factory terminal intel 10592 | -5/Upper Caves | Learned Armory garrison access intel 10711 | -5/Upper Caves | Discovered new exit (range 7) 10723 | -5/Upper Caves | Entered another Upper Caves area 10723 | -5/Upper Caves | Accompanied by 3 allies 10724 | -5/Upper Caves | Commander's escort returned to base 10724 | -5/Upper Caves | Commander's escort returned to base 10724 | -5/Upper Caves | Commander's escort returned to base 11263 | -5/Upper Caves | Attracted the attention of an 0b10 checkpoint 11374 | -5/Upper Caves | Discovered new exit (range 11) 11391 | -5/Upper Caves | Entered Warlord 11451 | -5/Warlord | System corruption cleaned by Quarantine Array 11560 | -5/Warlord | Build established: Derelict-Gunner 11832 | -5/Warlord | Met Warlord 11852 | -5/Warlord | Warlord's base attacked by MAIN.C 12072 | -5/Warlord | Found Prototype Energy Cannon 12073 | -5/Warlord | Identified Vortex Cannon 12078 | -5/Warlord | Found Vortex Cannon 12202 | -5/Warlord | Warlord forces counterattacked 12277 | -5/Warlord | Spotted Executioner 12315 | -5/Warlord | Discovered new exit (range 12) 12333 | -5/Warlord | Entered Proximity Caves 12449 | -4/Proximity Caves | Spotted B-86 Titan 12563 | -4/Proximity Caves | Lost 3 parts (1p1n1w) 12820 | -4/Proximity Caves | Build established: Derelict-Mutant 13040 | -4/Proximity Caves | Learned Research terminal intel 13268 | -4/Proximity Caves | Build established: Derelict-Gunner 13292 | -4/Proximity Caves | Discovered exit to Factory (range 4) 13310 | -4/Proximity Caves | Entered Factory 13310 | -4/Factory | Evolved 2 slots: Propulsion x2 13311 | -4/Factory | Loaded intel: 26 terminal locations 13312 | -4/Factory | Loaded intel: 4 garrison access locations 13667 | -4/Factory | Build established: Scavenger-Gunner 14006 | -4/Factory | Build established: Hacker-Gunner 14677 | -4/Factory | Discovered new exit (range 4) 14686 | -4/Factory | Identified exit to Upper Caves 14707 | -4/Factory | Entered Upper Caves 14720 | -4/Upper Caves | Learned location of Testing (-3) 14734 | -4/Upper Caves | Attacked by a delusional Derelict stockpiling parts 15029 | -4/Upper Caves | Attracted the attention of an 0b10 checkpoint 15171 | -4/Upper Caves | Spotted B-86 Titan 15264 | -4/Upper Caves | Learned 4 Research zone layouts 15382 | -4/Upper Caves | Discovered new exit (range 12) 15422 | -4/Upper Caves | Entered another Upper Caves area 15427 | -4/Upper Caves | Build established: Derelict-Gunner 15432 | -4/Upper Caves | Discovered new exit (range 8) 15448 | -4/Upper Caves | Learned 4 Research zone layouts 15519 | -4/Upper Caves | Spotted B-86 Titan 15619 | -4/Upper Caves | Entered Research 15619 | -3/Research | Evolved 2 slots: Utility x2 15620 | -3/Research | Identified exit to Testing 15622 | -3/Research | Loaded intel: 23 terminal locations 15627 | -3/Research | Identified exit to Armory 15791 | -3/Research | Entered Armory 15901 | -3/Armory | Identified exit to Research 15917 | -3/Armory | Build established: Hacker-Gunner 16313 | -3/Armory | Lost 3 parts (1p2u) 16426 | -3/Armory | Entered Research 16426 | -2/Research | Warlord forces began assault on 0b10 16426 | -2/Research | Evolved 2 slots: Utility x2 16489 | -2/Research | Met up with Warlord 16536 | -2/Research | Research machine network offline 16907 | -2/Research | Borebot progress halted 17064 | -2/Research | Borebot progress halted 17119 | -2/Research | Borebot progress halted 17124 | -2/Research | Spotted 4T-DWN(L) 17135 | -2/Research | Discovered new exit (range 10) 17235 | -2/Research | Identified exit to Access 17237 | -2/Research | Entered Access 17237 | -1/Access | Evolved 2 slots: Utility x2 17588 | -1/Access | Core integrity fell below 50% 17604 | -1/Access | Core integrity fell below 20% 17622 | -1/Access | Lost 21 parts (1p4n14u2w) 17627 | -1/Access | Destroyed by S-43 Plague with Heavy Machine Gun Last Messages --------------- 17581_ K-01 Serf collects debris. 17583_ P-80 Master resets S-43 Plague, system corruption cleaned. 17585_ K-01 Serf collects debris. 17587_ P-80 Master resets S-43 Plague, system corruption cleaned. 17591_ Mak. Hacking Suite destroyed. 17592_ S-43 Plague destroyed. 17604_ P-80 Master resets P-80 Master, system corruption cleaned. 17605_ System corrupted: Heat flow error (+129). 17605_ Triggered Blade Trap. 17605_ Massive razor-sharp blades shoot up from within the floor. 17605_ Core Analyzer severed. 17606_ Slammed into K-01 Serf. 17614_ Connecting with Terminal... 17614_ ALERT: Suspicious activity at Terminal A007. Dispatching Investigation squad. 17617_ Slammed into K-01 Serf. 17617_ Slug penetrates Wall. 17618_ K-01 Serf destroyed. 17627_ P-80 Master resets S-43 Plague, system corruption cleaned. [Achievement: 20k Club] Map ----- +----------------------------------------------------+ | ?????# #??# "" #?????????????????????? | | ????## #??# ] "" #?????????????????????? | | ????+ #??# """""" ???????????????????????? | | ????#### #??# """"""?????????????????????????? | | ???????# #??# "" ??????????????????????????? | | ???????# #??# "" ??????????????????????????? | | ???????# #??# ???????????????????????????? | | # ###### #### ???????????????????????????? | | + ??????????????????????????? | | #### ??????????????????????????? | | #+##############+???????????????????????? | | +% ""G"" # ????????????????????????? | | ##### "" "" !# ????????????????????????? | | ????# # ##############???????????? | | ?????#* # # #???????????? | | ####?????# ] # # #???????????? | | ?????????# # !+%p #???????????? | | ????????#######+##+### %# p #???????????? | | ????????+ hh=#sss #???????????? | | ????????###### # p """"" #???????????? | | ?????????????# # """"" #???????????? | | ?????????????# H"" # """"???????????????? | | ?????????????# ! """# """""??????????????? | | ?????????????# T"# """"" #???????????? | | ?????????????# """# #???????????? | | ?????????????# "" #@ #???????????? | | ?????????????# ##############???????????? | | ?????????????# #????????????????????????? | | ?????????????# ????????????????????????? | | ?????????????# /???????????????????????? | | ?????????????# # ??????????????????????? | | ?????????????########## #???????????????????????? | | ??????????????????????? #???????????????????????? | | ??????????????????????? ????????????????????????? | | ?????????????????????????????????????????????????? | | ?????????????????????????????????????????????????? | | ?????????????????????????????????????????????????? | | ?????????????????????????????????????????????????? | | ?????????????????????????????????????????????????? | | ?????????????????????????????????????????????????? | | ?????????????????????????????????????????????????? | | ?????????????????????????????????????????????????? | | ?????????????????????????????????????????????????? | | ?????????????????????????????????????????????????? | | ?????????????????????????????????????????????????? | | ?????????????????????????????????????????????????? | | ?????????????????????????????????????????????????? | | ?????????????????????????????????????????????????? | | ?????????????????????????????????????????????????? | | ?????????????????????????????????????????????????? | +----------------------------------------------------+ Best States ------------- Heat Dissipation 114 Energy Generation 57 Energy Capacity 520 Matter Stores 300 Matter Capacity 300 Sight Range 18 Terrain Scan Density 10 Jamming Range 14 Power Amplification 30 Armor Coverage 750 Resistance: KI 25 Utility Shielding 66 Weapon Shielding 66 Evasion (%) 50 Targeting Accuracy 16 Target Analysis 8 Core Analysis 6 Particle Charging 20 Offensive Hacking 44 Item Schematics ----------------- Arm. Wheel | -8/Materials | Scanalyzed Robot Schematics ------------------ None Fabricated ------------ Arm. Wheel | x2 | -5/Factory Alien Tech Used ----------------- None Achievements -------------- 20k Club All-out Warlord Quantum Hacking Challenges ------------ None Game ------ Seed ImprovedImprinterInverter Manual? 0 Play Time 04:11:29 Cumulative 62.1 hours Start 2023.03.26 @ 17:01:56 End 2023.03.26 @ 21:55:48 Sessions 1 Manual Loads 0 Difficulty Rogue Special Mode None Game No. 43 Rogue 43 Adventurer 0 Explorer 0 Win Type - Total 1 Types 1/0/0/0/0/0/0/0/0 Lore% 39 Gallery% 37 Achievement% 33 Wizard Run 0 Options --------- ASCII 0 Keyboard 0 Movement Mouse Keybinds 0 Fullscreen 2 Font 18/SmallcapsGlow Map View 76x50 Tactical HUD 1 Map Filters NONE Filters NONE Steam 1 RUN: 660c89da-f019-460a-a830-056e2c17928f